fUST/lending_fUST_20241214
["ID","MTS","AMOUNT","RATE_DAILY","PERIOD"]
[345349044,1734171032832,-159.25182579,0.00027,2]
[345349046,1734171032841,-161.0,0.00027,2]
[345349048,1734171032851,-2279.62845223,0.000271,2]
[345349050,1734171032860,-258.30196822,0.000271,2]
[345349053,1734171032870,-418.03068527,0.000272,2]
[345349055,1734171032883,-420.0,0.00027299,2]
[345349056,1734171032892,-302.0,0.000273,13]
[345349059,1734171032901,-324.04,0.000273,31]
[345349061,1734171032910,-324.04,0.000273,31]
[345349063,1734171032920,-324.04,0.000273,31]
[345349065,1734171032929,-324.04,0.000273,31]
[345349067,1734171032939,-324.04,0.000273,31]
[345349069,1734171032947,-324.04,0.000273,31]
[345349071,1734171032957,-324.04,0.000273,31]
[345349073,1734171032967,-324.04,0.000273,31]
[345349075,1734171032975,-324.04,0.000273,31]
[345349077,1734171032984,-324.04,0.000273,31]
[345349079,1734171032994,-324.04,0.000273,31]
[345349081,1734171033004,-324.04,0.000273,31]
[345349083,1734171033013,-196.17335947,0.00027397,7]
[345349085,1734171033023,-177.33103147,0.00027397,7]
[345349087,1734171033033,-423.90188487,0.00027397,7]
[345349089,1734171033043,-198.48035001,0.00027397,7]
[345349091,1734171033052,-500.0,0.00027397,2]
[345349093,1734171033062,-500.0,0.00027397,7]
[345349095,1734171033072,-500.0,0.00027397,2]
[345349097,1734171033082,-500.0,0.00027397,7]
[345349099,1734171033092,-500.0,0.00027397,7]
[345349101,1734171033102,-500.0,0.00027397,7]
[345349104,1734171033112,-168.0,0.00027397,7]
[345349106,1734171033121,-500.0,0.00027397,7]
[345349107,1734171033131,-200.0,0.00027397,7]
[345349109,1734171033140,-500.0,0.00027397,7]
[345349112,1734171033150,-1000.0,0.00027397,2]
[345349113,1734171033160,-500.0,0.00027397,7]
[345349115,1734171033169,-500.0,0.00027397,7]
[345349118,1734171033178,-500.0,0.00027397,7]
[345349120,1734171033188,-500.0,0.00027397,7]
[345349122,1734171033199,-500.0,0.00027397,2]
[345349124,1734171033208,-1159.77,0.00027397,7]
[345349126,1734171033217,-500.0,0.00027397,7]
[345349128,1734171033228,-500.0,0.00027397,7]
[345349130,1734171033237,-500.0,0.00027397,7]
[345349132,1734171033246,-500.0,0.00027397,7]
[345349134,1734171033256,-500.0,0.00027397,7]
[345349136,1734171033265,-500.0,0.00027397,7]
[345349138,1734171033275,-500.0,0.00027397,2]
[345349140,1734171033285,-500.0,0.00027397,7]
[345349142,1734171033294,-500.0,0.00027397,7]
[345349144,1734171033304,-500.0,0.00027397,7]
[345349146,1734171033314,-500.0,0.00027397,7]
[345349148,1734171033323,-500.0,0.00027397,7]
[345349150,1734171033333,-500.0,0.00027397,7]
[345349152,1734171033342,-500.0,0.00027397,7]
[345349154,1734171033351,-500.0,0.00027397,7]
[345349156,1734171033360,-500.0,0.00027397,7]
[345349158,1734171033369,-605.41583852,0.00027397,7]
[345349160,1734171033379,-500.0,0.00027397,7]
[345349162,1734171033388,-2166.32,0.00027397,7]
[345349164,1734171033397,-500.0,0.00027397,7]
[345349166,1734171033406,-759.85,0.00027397,7]
[345349168,1734171033416,-500.0,0.00027397,7]
[345349170,1734171033426,-500.0,0.00027397,7]
[345349171,1734171033435,-842.08,0.00027397,5]
[345349173,1734171033445,-500.0,0.00027397,7]
[345349174,1734171033454,-500.0,0.00027397,7]
[345349176,1734171033464,-500.0,0.00027397,7]
[345349178,1734171033474,-500.0,0.00027397,7]
[345349179,1734171033483,-1000.0,0.00027397,2]
[345349180,1734171033492,-500.0,0.00027397,2]
[345349181,1734171033502,-500.0,0.00027397,2]
[345349182,1734171033511,-524.21514,0.00027397,2]
[345349183,1734171033520,-500.0,0.00027397,7]
[345349184,1734171033530,-162.25432473,0.00027397,7]
[345349185,1734171033541,-1497.44,0.00027397,7]
[345349186,1734171033550,-309.81801808,0.00027397,7]
[345349187,1734171033559,-500.0,0.00027399,7]
[345349188,1734171033571,-1341.63,0.000274,2]
[345349189,1734171033581,-418.03068523,0.0002762,2]
[345349190,1734171033590,-500.0,0.0002767,7]
[345349191,1734171033599,-500.0,0.0002767,7]
[345349192,1734171033609,-500.0,0.00027671,2]
[345349193,1734171033618,-500.0,0.00027671,2]
[345349194,1734171033628,-500.0,0.00027671,7]
[345349195,1734171033637,-168.0,0.00027671,7]
[345349196,1734171033647,-500.0,0.00027671,7]
[345349197,1734171033656,-200.0,0.00027671,7]
[345349198,1734171033665,-500.0,0.00027671,7]
[345349199,1734171033675,-1000.0,0.00027671,2]
[345349200,1734171033684,-500.0,0.00027671,7]
[345349201,1734171033694,-500.0,0.00027671,7]
[345349202,1734171033703,-500.0,0.00027671,2]
[345349203,1734171033713,-1159.77,0.00027671,7]
[345349204,1734171033722,-500.0,0.00027671,7]
[345349205,1734171033732,-500.0,0.00027671,7]
[345349206,1734171033742,-500.0,0.00027671,7]
[345349207,1734171033751,-500.0,0.00027671,7]
[345349208,1734171033762,-500.0,0.00027671,7]
[345349209,1734171033771,-500.0,0.00027671,2]
[345349210,1734171033780,-500.0,0.00027671,7]
[345349211,1734171033792,-500.0,0.00027671,7]
[345349212,1734171033801,-500.0,0.00027671,7]
[345349213,1734171033811,-2166.32,0.00027671,7]
[345349214,1734171033820,-462.18,0.00027671,7]
[345349215,1734171033830,-759.85,0.00027671,7]
[345349216,1734171033839,-500.0,0.00027671,7]
[345349217,1734171033849,-500.0,0.00027671,7]
[345349218,1734171033859,-842.08,0.00027671,5]
[345349219,1734171033868,-500.0,0.00027671,7]
[345349220,1734171033881,-500.0,0.00027671,7]
[345349221,1734171033890,-500.0,0.00027671,7]
[345349222,1734171033900,-409.93,0.00027671,7]
[345349223,1734171033909,-1000.0,0.00027671,2]
[345349224,1734171033919,-595.78,0.00027671,7]
[345349225,1734171033928,-1497.44,0.00027671,7]
[345349226,1734171033938,-420.0,0.00027724,2]
[345349227,1734171033947,-500.0,0.00027945,2]
[345349228,1734171033957,-500.0,0.00027945,2]
[345349229,1734171033967,-500.0,0.00027945,7]
[345349230,1734171033976,-168.0,0.00027945,7]
[345349231,1734171033985,-309.64946116,0.00027945,7]
[345349232,1734171033995,-201.69382188,0.00027945,7]
[345349233,1734171034004,-195.42,0.00027945,7]
[345349234,1734171034013,-1000.0,0.00027945,2]
[345349235,1734171034023,-236.78243588,0.00027945,2]
[345349236,1734171034035,-1159.77,0.00027945,7]
[345349237,1734171034044,-500.0,0.00027945,7]
[345349238,1734171034054,-500.0,0.00027945,7]
[345349239,1734171034063,-365.22691916,0.00027945,7]
[345349240,1734171034073,-500.0,0.00027945,7]
[345349241,1734171034083,-480.25116142,0.00027945,2]
[345349242,1734171034092,-500.0,0.00027945,7]
[345349243,1734171034101,-500.0,0.00027945,7]
[345349244,1734171034110,-241.9,0.00027945,7]
[345349245,1734171034119,-2166.32,0.00027945,7]
[345349246,1734171034129,-759.85,0.00027945,7]
[345349247,1734171034138,-500.0,0.00027945,7]
[345349248,1734171034147,-500.0,0.00027945,7]
[345349249,1734171034156,-842.08,0.00027945,5]
[345349250,1734171034166,-500.0,0.00027945,7]
[345349251,1734171034175,-500.0,0.00027945,7]
[345349252,1734171034185,-201.02063562,0.00027945,7]
[345349253,1734171034194,-1000.0,0.00027945,2]
[345349254,1734171034203,-1497.44,0.00027945,7]
[345349255,1734171034213,-500.0,0.00027999,7]
[345349256,1734171034223,-1801.69744156,0.00028,2]
[345349257,1734171034232,-180.0,0.00028,120]
[345349258,1734171034242,-324.04,0.00028,31]
[345349259,1734171034251,-324.04,0.00028,31]
[345349260,1734171034260,-324.04,0.00028,31]
[345349261,1734171034270,-324.04,0.00028,31]
[345349262,1734171034279,-324.04,0.00028,31]
[345349263,1734171034294,-324.04,0.00028,31]
[345349264,1734171034303,-324.04,0.00028,31]
[345349265,1734171034313,-324.04,0.00028,31]
[345349266,1734171034323,-324.04,0.00028,31]
[345349267,1734171034332,-324.04,0.00028,31]
[345349268,1734171034341,-324.04,0.00028,31]
[345349269,1734171034350,-324.04,0.00028,31]
[345349270,1734171034359,-324.04,0.00028,31]
[345349271,1734171034369,-324.04,0.00028,31]
[345349272,1734171034378,-324.04,0.00028,31]
[345349273,1734171034388,-324.04,0.00028,31]
[345349274,1734171034398,-324.04,0.00028,31]
[345349275,1734171034407,-324.04,0.00028,31]
[345349276,1734171034417,-324.04,0.00028,31]
[345349277,1734171034428,-324.04,0.00028,31]
[345349278,1734171034438,-324.04,0.00028,31]
[345349279,1734171034448,-324.04,0.00028,31]
[345349280,1734171034459,-324.04,0.00028,31]
[345349281,1734171034468,-324.04,0.00028,31]
[345349282,1734171034477,-418.03068523,0.00028041,2]
[345349283,1734171034487,-2370.0,0.00028121,2]
[345349284,1734171034496,-2160.0,0.00028121,2]
[345349285,1734171034506,-500.0,0.00028218,7]
[345349286,1734171034515,-500.0,0.00028219,2]
[345349287,1734171034524,-500.0,0.00028219,2]
[345349288,1734171034536,-347.67808273,0.00028219,7]
[345349289,1734171034545,-168.0,0.00028219,7]
[345349290,1734171034554,-1000.0,0.00028219,2]
[345349291,1734171034564,-1159.77,0.00028219,7]
[345349292,1734171034573,-500.0,0.00028219,7]
[345349293,1734171034582,-500.0,0.00028219,7]
[345349294,1734171034592,-506.99587178,0.00028219,7]
[345349295,1734171034602,-2166.32,0.00028219,7]
[345349296,1734171034611,-759.85,0.00028219,7]
[345349297,1734171034620,-500.0,0.00028219,7]
[345349298,1734171034629,-187.28,0.00028219,7]
[345349299,1734171034638,-842.08,0.00028219,5]
[345349300,1734171034647,-500.0,0.00028219,7]
[345349301,1734171034656,-576.48,0.00028219,7]
[345349302,1734171034666,-1000.0,0.00028219,2]
[345349303,1734171034675,-1497.44,0.00028219,7]
[345349304,1734171034685,-151.0,0.000283,12]
[345349305,1734171034694,-191.44,0.000284,7]
[345349306,1734171034703,-151.0,0.000284,20]
[345349307,1734171034712,-1037.21673576,0.000284,2]
[345349308,1734171034721,-418.03068523,0.00028461,2]
[345349309,1734171034730,-500.0,0.00028492,7]
[345349310,1734171034739,-500.0,0.00028493,2]
[345349311,1734171034748,-500.0,0.00028493,2]
[345349312,1734171034757,-168.0,0.00028493,7]
[345349313,1734171034767,-1000.0,0.00028493,2]
[345349314,1734171034776,-1159.77,0.00028493,7]
[345349315,1734171034787,-500.0,0.00028493,7]
[345349316,1734171034797,-500.0,0.00028493,7]
[345349317,1734171034806,-2166.32,0.00028493,7]
[345349318,1734171034815,-759.85,0.00028493,7]
[345349319,1734171034825,-500.0,0.00028493,7]
[345349320,1734171034834,-842.08,0.00028493,5]
[345349321,1734171034845,-500.0,0.00028493,7]
[345349322,1734171034855,-1000.0,0.00028493,2]
[345349323,1734171034865,-1497.44,0.00028493,7]
[345349324,1734171034877,-287.85189428,0.00028499,2]
[345349325,1734171034887,-500.0,0.00028499,2]
[345349326,1734171034897,-500.0,0.00028499,2]
[345349327,1734171034906,-500.0,0.00028499,2]
[345349328,1734171034915,-500.0,0.00028499,2]
[345349329,1734171034927,-307.6786467,0.00028499,2]
[345349330,1734171034936,-224.09627011,0.00028499,2]
[345349331,1734171034946,-500.0,0.00028499,2]
[345349332,1734171034958,-500.0,0.00028499,2]
[345349333,1734171034967,-468.95537234,0.00028499,2]
[345349334,1734171034977,-500.0,0.00028499,7]
[345349335,1734171034986,-500.0,0.00028499,7]
[345349336,1734171034995,-500.0,0.00028499,7]
[345349337,1734171035004,-500.0,0.00028499,7]
[345349338,1734171035013,-500.0,0.00028499,7]
[345349339,1734171035022,-500.0,0.00028499,7]
[345349340,1734171035034,-500.0,0.00028499,7]
[345349341,1734171035044,-500.0,0.00028499,7]
[345349342,1734171035054,-500.0,0.00028499,7]
[345349343,1734171035063,-500.0,0.00028499,7]
[345349344,1734171035072,-500.0,0.00028499,7]
[345349345,1734171035081,-500.0,0.00028499,7]
[345349346,1734171035091,-500.0,0.00028499,7]
[345349347,1734171035099,-500.0,0.00028499,7]
[345349348,1734171035108,-211.23822578,0.00028499,7]
[345349349,1734171035117,-75391.86641945,0.000285,2]
[345349350,1734171035126,-1878.71284277,0.000285,2]
[345349351,1734171035135,-118187.95921415,0.000285,2]
[345349352,1734171035297,-3900.0,0.000285,2]
[345349416,1734171038991,-7096.6,0.000285,2]
[345349418,1734171039002,-1335.40967501,0.000285,2]
[345349612,1734171040690,-5310.47549093,0.000285,2]
[345350071,1734171046652,-1530.0,0.000285,2]
[345350072,1734171064115,563.0,0.0002401,30]
[345350077,1734171150706,169.835209,0.00013973,2]
[345350089,1734172118161,4959.27846492,0.0001999,2]
[345350090,1734172118187,4936.63166691,0.0001999,2]
[345350103,1734172194356,997.10600087,0.0002,10]
[345350106,1734172203065,169.835209,0.00013973,2]
[345350166,1734172231918,-176.401179,0.00026235,2]
[345350167,1734172231928,-308.171577,0.00026408,2]
[345350170,1734172231938,-326.1513011,0.00026509,2]
[345350172,1734172231947,-2949.0420431,0.00026509,2]
[345350174,1734172231957,-300.0,0.00026635,2]
[345350176,1734172231966,-300.0,0.00026635,2]
[345350178,1734172231976,-2053.1779121,0.00026636,2]
[345350180,1734172231985,-460.359,0.0002707,2]
[345350182,1734172231994,-207.44,0.000273,31]
[345350184,1734172232003,-68.74145867,0.000273,31]
[345350186,1734172232016,-138.69854133,0.000273,31]
[345350188,1734172232025,-207.44,0.000273,31]
[345350190,1734172232035,-207.44,0.000273,31]
[345350192,1734172232044,-207.44,0.000273,31]
[345350195,1734172232054,-207.44,0.000273,31]
[345350198,1734172232064,-207.44,0.000273,31]
[345350200,1734172232073,-207.44,0.000273,31]
[345350202,1734172232082,-207.44,0.000273,31]
[345350204,1734172232093,-207.44,0.000273,31]
[345350206,1734172232103,-207.44,0.000273,31]
[345350208,1734172232112,-207.44,0.000273,31]
[345350210,1734172232121,-337.6240308,0.00027387,2]
[345350212,1734172232130,-1207.47,0.000274,2]
[345350214,1734172232139,-500.0,0.00027669,7]
[345350216,1734172232149,-1715.0,0.00027669,7]
[345350218,1734172232159,-601.55,0.00027669,7]
[345350220,1734172232168,-500.0,0.00027669,7]
[345350222,1734172232178,-666.65,0.00027669,5]
[345350224,1734172232187,-500.0,0.00027669,7]
[345350226,1734172232197,-1185.47,0.00027669,7]
[345350228,1734172232206,-918.15,0.00027669,7]
[345350230,1734172232215,-168.0,0.0002767,7]
[345350233,1734172232225,-1000.0,0.0002767,2]
[345350235,1734172232234,-500.0,0.0002767,2]
[345350236,1734172232243,-500.0,0.0002767,7]
[345350238,1734172232252,-622.42657184,0.0002767,2]
[345350241,1734172232262,-1000.0,0.0002767,2]
[345350243,1734172232271,-500.0,0.00027943,7]
[345350245,1734172232281,-1715.0,0.00027943,7]
[345350247,1734172232290,-601.55,0.00027943,7]
[345350249,1734172232299,-500.0,0.00027943,7]
[345350251,1734172232309,-666.65,0.00027943,5]
[345350253,1734172232318,-500.0,0.00027943,7]
[345350255,1734172232328,-1185.47,0.00027943,7]
[345350257,1734172232337,-918.15,0.00027943,7]
[345350259,1734172232349,-168.0,0.00027944,7]
[345350261,1734172232363,-1013.79916913,0.00027944,2]
[345350262,1734172232372,-500.0,0.00027944,2]
[345350264,1734172232381,-500.0,0.00027944,7]
[345350266,1734172232391,-1000.0,0.00027944,2]
[345350268,1734172232401,-207.44,0.00028,31]
[345350270,1734172232411,-207.44,0.00028,31]
[345350272,1734172232420,-207.44,0.00028,31]
[345350274,1734172232429,-207.44,0.00028,31]
[345350276,1734172232439,-207.44,0.00028,31]
[345350278,1734172232448,-207.44,0.00028,31]
[345350280,1734172232458,-207.44,0.00028,31]
[345350282,1734172232468,-207.44,0.00028,31]
[345350284,1734172232477,-207.44,0.00028,31]
[345350286,1734172232487,-207.44,0.00028,31]
[345350288,1734172232496,-207.44,0.00028,31]
[345350290,1734172232505,-207.44,0.00028,31]
[345350292,1734172232514,-207.44,0.00028,31]
[345350294,1734172232524,-207.44,0.00028,31]
[345350296,1734172232534,-207.44,0.00028,31]
[345350298,1734172232544,-207.44,0.00028,31]
[345350300,1734172232553,-207.44,0.00028,31]
[345350302,1734172232563,-207.44,0.00028,31]
[345350304,1734172232572,-207.44,0.00028,31]
[345350306,1734172232582,-207.44,0.00028,31]
[345350308,1734172232594,-207.44,0.00028,31]
[345350311,1734172232604,-207.44,0.00028,31]
[345350313,1734172232614,-207.44,0.00028,31]
[345350314,1734172232623,-207.44,0.00028,31]
[345350317,1734172232633,-500.0,0.00028217,7]
[345350319,1734172232642,-1715.0,0.00028217,7]
[345350320,1734172232651,-601.55,0.00028217,7]
[345350323,1734172232661,-500.0,0.00028217,7]
[345350324,1734172232670,-666.65,0.00028217,5]
[345350326,1734172232679,-500.0,0.00028217,7]
[345350327,1734172232689,-1185.47,0.00028217,7]
[345350328,1734172232698,-918.15,0.00028217,7]
[345350329,1734172232706,-168.0,0.00028218,7]
[345350330,1734172232715,-500.0,0.00028218,2]
[345350331,1734172232724,-500.0,0.00028218,7]
[345350332,1734172232734,-1000.0,0.00028218,2]
[345350333,1734172232743,-684.8092791,0.000284,2]
[345350334,1734172232752,-500.0,0.00028491,7]
[345350335,1734172232762,-1715.0,0.00028491,7]
[345350336,1734172232773,-601.55,0.00028491,7]
[345350337,1734172232783,-500.0,0.00028491,7]
[345350338,1734172232792,-666.65,0.00028491,5]
[345350339,1734172232801,-412.76593094,0.00028491,7]
[345350340,1734172232811,-1185.47,0.00028491,7]
[345350341,1734172232820,-918.15,0.00028491,7]
[345350342,1734172232829,-168.0,0.00028492,7]
[345350343,1734172232838,-500.0,0.00028492,2]
[345350344,1734172232850,-500.0,0.00028492,7]
[345350345,1734172232859,-1000.0,0.00028492,2]
[345350346,1734172232868,-201.49632599,0.00028499,2]
[345350347,1734172232878,-37695.93320972,0.000285,2]
[345350348,1734172232887,-939.35642139,0.000285,2]
[345350349,1734172232897,-14555.27818598,0.000285,2]
[345350350,1734172232906,-872448.84973508,0.000285,5]
[345350378,1734172237963,-457.9850005,0.000285,5]
[345350381,1734172237975,-311649.20379457,0.000285,5]
[345350869,1734172243068,-17899.90441249,0.000285,5]
[345350871,1734172243080,-2180.1425038,0.000285,5]
[345351631,1734174632436,-300.0,0.00024892,2]
[345351633,1734174632447,-300.0,0.00024892,2]
[345351635,1734174632456,-832.9273983,0.00024893,2]
[345351703,1734174638386,-12476.14670466,0.00024893,2]
[345352240,1734174643369,-13704.31410896,0.00024893,2]
[345352241,1734174643379,-469.67821069,0.00024893,2]
[345352242,1734174643388,-238.55156017,0.00024897,2]
[345352243,1734174643397,-299.0,0.00025,2]
[345352245,1734174643406,-200.0,0.00026147,2]
[345352247,1734174643416,-179.50874,0.0002664,2]
[345352249,1734174643425,-420.0,0.00026969,2]
[345352251,1734174643435,-457.054,0.0002707,2]
[345352253,1734174643443,-209.01534265,0.000272,2]
[345352255,1734174643452,-152.65,0.000273,31]
[345352257,1734174643461,-152.65,0.000273,31]
[345352260,1734174643470,-152.65,0.000273,31]
[345352262,1734174643480,-152.65,0.000273,31]
[345352264,1734174643489,-152.65,0.000273,31]
[345352266,1734174643498,-152.65,0.000273,31]
[345352269,1734174643507,-152.65,0.000273,31]
[345352272,1734174643516,-152.65,0.000273,31]
[345352274,1734174643525,-152.65,0.000273,31]
[345352278,1734174643535,-152.65,0.000273,31]
[345352281,1734174643544,-420.0,0.00027381,2]
[345352283,1734174643554,-168.0,0.00027397,7]
[345352286,1734174643563,-500.0,0.00027397,7]
[345352288,1734174643572,-765.12,0.00027397,7]
[345352291,1734174643582,-500.0,0.00027397,7]
[345352293,1734174643591,-1429.17,0.00027397,7]
[345352295,1734174643600,-500.0,0.00027397,7]
[345352297,1734174643610,-342.68369568,0.00027397,2]
[345352298,1734174643619,-501.29,0.00027397,7]
[345352300,1734174643629,-555.54,0.00027397,5]
[345352303,1734174643639,-987.89,0.00027397,7]
[345352305,1734174643648,-500.0,0.00027397,7]
[345352307,1734174643657,-164.65395169,0.00027397,2]
[345352309,1734174643666,-209.01534261,0.00027623,2]
[345352311,1734174643676,-168.0,0.00027671,7]
[345352313,1734174643685,-500.0,0.00027671,7]
[345352315,1734174643696,-765.12,0.00027671,7]
[345352317,1734174643705,-436.70832328,0.00027671,7]
[345352319,1734174643714,-1429.17,0.00027671,7]
[345352321,1734174643723,-500.0,0.00027671,7]
[345352323,1734174643732,-501.29,0.00027671,7]
[345352325,1734174643746,-555.54,0.00027671,5]
[345352327,1734174643755,-987.89,0.00027671,7]
[345352329,1734174643764,-500.0,0.00027671,7]
[345352331,1734174643773,-1086.72,0.000277,2]
[345352333,1734174643784,-168.0,0.00027945,7]
[345352335,1734174643794,-500.0,0.00027945,7]
[345352337,1734174643803,-765.12,0.00027945,7]
[345352339,1734174643816,-1429.17,0.00027945,7]
[345352341,1734174643826,-500.0,0.00027945,7]
[345352344,1734174643835,-501.29,0.00027945,7]
[345352346,1734174643844,-555.54,0.00027945,5]
[345352348,1734174643855,-987.89,0.00027945,7]
[345352349,1734174643864,-500.0,0.00027945,7]
[345352351,1734174643874,-152.65,0.00028,31]
[345352353,1734174643883,-152.65,0.00028,31]
[345352355,1734174643892,-152.65,0.00028,31]
[345352357,1734174643902,-152.65,0.00028,31]
[345352359,1734174643911,-152.65,0.00028,31]
[345352361,1734174643920,-152.65,0.00028,31]
[345352363,1734174643930,-152.65,0.00028,31]
[345352365,1734174643940,-152.65,0.00028,31]
[345352367,1734174643949,-152.65,0.00028,31]
[345352369,1734174643959,-152.65,0.00028,31]
[345352371,1734174643969,-152.65,0.00028,31]
[345352373,1734174643978,-152.65,0.00028,31]
[345352376,1734174643988,-152.65,0.00028,31]
[345352377,1734174643997,-152.65,0.00028,31]
[345352380,1734174644007,-152.65,0.00028,31]
[345352381,1734174644017,-152.65,0.00028,31]
[345352383,1734174644026,-152.65,0.00028,31]
[345352385,1734174644036,-152.65,0.00028,31]
[345352387,1734174644046,-152.65,0.00028,31]
[345352389,1734174644055,-152.65,0.00028,31]
[345352391,1734174644064,-209.01534261,0.00028046,2]
[345352393,1734174644074,-168.0,0.00028219,7]
[345352395,1734174644083,-500.0,0.00028219,7]
[345352397,1734174644093,-765.12,0.00028219,7]
[345352399,1734174644102,-1429.17,0.00028219,7]
[345352402,1734174644113,-500.0,0.00028219,7]
[345352403,1734174644122,-501.29,0.00028219,7]
[345352405,1734174644131,-555.54,0.00028219,5]
[345352407,1734174644140,-987.89,0.00028219,7]
[345352409,1734174644150,-500.0,0.00028219,7]
[345352411,1734174644159,-500.0,0.00028398,7]
[345352413,1734174644169,-41791.68828454,0.000284,14]
[345352415,1734174644179,-177.23730776,0.000284,2]
[345352417,1734174644188,-209.01534261,0.00028469,2]
[345352419,1734174644198,-375.39304375,0.00028473,5]
[345352421,1734174644207,-210.78874028,0.00028473,5]
[345352423,1734174644216,-324.27817876,0.00028473,5]
[345352425,1734174644226,-6210.265048,0.0002849,2]
[345352427,1734174644235,-168.0,0.00028493,7]
[345352429,1734174644245,-500.0,0.00028493,7]
[345352431,1734174644254,-765.12,0.00028493,7]
[345352433,1734174644264,-1429.17,0.00028493,7]
[345352435,1734174644273,-500.0,0.00028493,7]
[345352437,1734174644282,-501.29,0.00028493,7]
[345352439,1734174644292,-555.54,0.00028493,5]
[345352441,1734174644301,-987.89,0.00028493,7]
[345352443,1734174644310,-500.0,0.00028493,7]
[345352445,1734174644319,-500.0,0.00028499,2]
[345352447,1734174644329,-447.14811005,0.00028499,2]
[345352449,1734174644338,-1559428.44206408,0.000285,5]
[345352704,1734175545645,10000.0,0.00020222,2]
[345352705,1734175575805,10000.0,0.00020222,2]
[345353215,1734176596231,4236.12821691,0.00019923,2]
[345353639,1734177046599,-3163.55711265,0.00022275,2]
[345353640,1734177046610,-150.40445526,0.000225,2]
[345353641,1734177046619,-158.7265727,0.00024999,2]
[345353642,1734177046628,-372.82670725,0.00025973,2]
[345353643,1734177046637,-300.0,0.00025998,2]
[345353644,1734177046647,-300.0,0.00025998,2]
[345353645,1734177046656,-219.31811718,0.00025999,2]
[345353646,1734177046665,-232.4662987,0.00025999,2]
[345353647,1734177046674,-454.05110523,0.00025999,2]
[345353648,1734177046683,-256.40873852,0.00025999,2]
[345353649,1734177046692,-188.352,0.00025999,12]
[345353650,1734177046701,-14527.88889251,0.00025999,2]
[345353963,1734178237724,-332.319765,0.000259,7]
[345353965,1734178237734,-188.354,0.00025999,12]
[345353968,1734178237744,-300.0,0.00025999,2]
[345353970,1734178237753,-12856.02367963,0.00026,2]
[345354135,1734178239761,-1226.61,0.00026,2]
[345354156,1734178242846,-297.62593435,0.00026,2]
[345354193,1734179319896,815.07288941,0.0001999,2]
[345354218,1734179431944,-465.475,0.000247,2]
[345354219,1734179431954,-179.96053706,0.000259,2]
[345354220,1734179431964,-130.26046294,0.00025998,2]
[345354221,1734179432058,-169.73953706,0.00025998,2]
[345354222,1734179432067,-300.0,0.00025998,2]
[345354223,1734179432077,-153.37180175,0.00025999,2]
[345354224,1734179432086,-500.0,0.00025999,2]
[345354225,1734179432096,-247.33414287,0.00025999,2]
[345354226,1734179432107,-500.0,0.00025999,2]
[345354227,1734179432120,-483.53924987,0.00025999,2]
[345354228,1734179432130,-471.8129398,0.00025999,2]